bitfinex/quotes_BTCUSD_20251001
["timestamp","ask_amount","ask_price","bid_price","bid_amount"]
[1759295387015,0.00832177,114570.0,114560.0,8.745407]
[1759295387188,0.00832177,114570.0,114560.0,9.634647]
[1759295387495,0.00832177,114570.0,114560.0,9.562047]
[1759295387729,0.00832177,114570.0,114560.0,9.199087]
[1759295388268,0.00832177,114570.0,114560.0,9.225275]
[1759295390993,0.00832177,114570.0,114560.0,8.771595]
[1759295391403,0.00832177,114570.0,114560.0,8.70643994]
[1759295391809,0.00832177,114570.0,114560.0,8.45819994]
[1759295392120,0.00832177,114570.0,114560.0,8.70643994]
[1759295393726,0.01335177,114570.0,114560.0,8.45819994]
[1759295394094,0.01335177,114570.0,114560.0,8.4522114]
[1759295394500,0.01335177,114570.0,114560.0,8.7922114]
[1759295394962,0.01335177,114570.0,114560.0,8.5440114]
[1759295395172,0.01335177,114570.0,114560.0,8.7922114]
[1759295395374,0.01335177,114570.0,114560.0,8.5440114]
[1759295395736,0.01335177,114570.0,114560.0,8.7922114]
[1759295397204,0.01335177,114570.0,114560.0,9.3184514]
[1759295397413,0.01335177,114570.0,114560.0,9.7720914]
[1759295398668,0.01335177,114570.0,114560.0,8.7073314]
[1759295398865,0.10273724,114570.0,114560.0,8.7073314]
[1759295399176,0.10273724,114570.0,114560.0,2.0756854]
[1759295400786,0.277303,114570.0,114560.0,1.0109254]
[1759295400993,0.277303,114570.0,114560.0,2.0756854]
[1759295401168,0.10273724,114570.0,114560.0,2.0756854]
[1759295401415,0.10273724,114570.0,114560.0,2.028841]
[1759295401609,0.277303,114570.0,114560.0,2.028841]
[1759295402225,0.277303,114570.0,114560.0,0.4495]
[1759295402432,0.28546267,114570.0,114560.0,1.26606]
[1759295402653,0.36163591,114570.0,114560.0,0.81242]
[1759295402854,0.31561457,114570.0,114560.0,1.26281]
[1759295403060,0.34061457,114570.0,114560.0,1.25239]
[1759295403261,0.33261457,114570.0,114560.0,1.25239]
[1759295403678,0.34061457,114570.0,114560.0,1.25239]
[1759295403875,0.32261457,114570.0,114560.0,1.25339]
[1759295404078,0.31461457,114570.0,114560.0,1.25339]
[1759295404440,0.32961457,114570.0,114560.0,1.25439]
[1759295404852,0.34061457,114570.0,114560.0,1.25539]
[1759295405049,0.36681753,114570.0,114560.0,1.25539]
[1759295408647,0.36681753,114570.0,114540.0,0.20097298]
[1759295408648,0.174581,114560.0,114540.0,0.17191258]
[1759295408849,0.174581,114560.0,114550.0,0.26531596]
[1759295409081,0.179611,114560.0,114550.0,0.26531596]
[1759295409899,0.179611,114560.0,114550.0,0.51355596]
[1759295411283,0.179611,114560.0,114550.0,0.53853596]
[1759295412788,0.00503,114560.0,114550.0,0.53853596]
[1759295412966,0.08938547,114560.0,114550.0,0.54057596]
[1759295413199,0.08938547,114560.0,114550.0,0.88057596]
[1759295413404,0.09147547,114560.0,114550.0,0.87853596]
[1759295413691,0.09441547,114560.0,114550.0,0.87853596]
[1759295416563,0.26899647,114560.0,114550.0,0.7039]
[1759295416805,0.26899647,114560.0,114550.0,0.87849624]
[1759295417157,0.09441547,114560.0,114550.0,1.76781624]
[1759295418006,0.26899647,114560.0,114550.0,1.76781624]
[1759295419037,0.26899647,114560.0,114550.0,0.1883]
[1759295419244,0.26899647,114560.0,114550.0,1.25322]
[1759295420478,0.26899647,114560.0,114550.0,1.42781624]
[1759295421446,0.26899647,114560.0,114550.0,1.25322]
[1759295421652,0.26899647,114560.0,114550.0,1.42781624]
[1759295422362,0.26899647,114560.0,114550.0,1.25322]
[1759295422860,0.33350176,114560.0,114550.0,1.25322]
[1759295426816,0.17460107,114550.0,114530.0,0.51309023]
[1759295427037,0.09135547,114540.0,114530.0,0.51309023]
[1759295427285,0.09437547,114540.0,114530.0,1.49317023]
[1759295427457,0.11878547,114540.0,114530.0,1.49317023]
[1759295428062,0.11379547,114540.0,114530.0,1.74341023]
[1759295428433,0.11878547,114540.0,114530.0,1.74137023]
[1759295429079,0.11878547,114540.0,114530.0,1.76651023]
[1759295429726,0.11576547,114540.0,114530.0,1.76855023]
[1759295429966,0.11878547,114540.0,114530.0,1.76651023]
[1759295430416,0.11878547,114540.0,114530.0,1.76755023]
[1759295430650,0.11878547,114540.0,114530.0,1.76551023]
[1759295430856,0.11379547,114540.0,114530.0,1.76855023]
[1759295431151,0.11878547,114540.0,114530.0,1.76651023]
[1759295431499,0.11379547,114540.0,114530.0,1.76855023]
[1759295431733,0.11379547,114540.0,114530.0,1.76982023]
[1759295432105,0.11379547,114540.0,114530.0,1.76855023]
[1759295432403,0.11379547,114540.0,114530.0,1.78529241]
[1759295432585,0.11576547,114540.0,114530.0,1.78529241]
[1759295433001,0.11576547,114540.0,114530.0,1.78629241]
[1759295433673,0.11379547,114540.0,114530.0,1.78629241]
[1759295433873,0.11576547,114540.0,114530.0,1.78629241]
[1759295434070,0.11379547,114540.0,114530.0,1.78629241]
[1759295434475,0.11878547,114540.0,114530.0,1.78425241]
[1759295434677,0.11576547,114540.0,114530.0,1.78425241]
[1759295435114,0.11878547,114540.0,114530.0,1.78425241]
[1759295435317,0.11878547,114540.0,114530.0,0.71933241]
[1759295435517,0.11878547,114540.0,114530.0,1.78437241]
[1759295435713,0.11576547,114540.0,114530.0,1.78641241]
[1759295436107,0.11878547,114540.0,114530.0,1.78437241]
[1759295436318,0.11379547,114540.0,114530.0,1.78641241]
[1759295436532,1.11576547,114540.0,114530.0,1.78641241]
[1759295436926,1.11878547,114540.0,114530.0,1.84885647]
[1759295437437,1.11576547,114540.0,114530.0,1.84885647]
[1759295437654,1.11379547,114540.0,114530.0,1.84885647]
[1759295438071,1.11576547,114540.0,114530.0,1.84885647]
[1759295438276,1.11878547,114540.0,114530.0,1.84885647]
[1759295438480,1.11379547,114540.0,114530.0,1.84885647]
[1759295438677,1.11379547,114540.0,114530.0,1.83111429]
[1759295438898,1.11878547,114540.0,114530.0,1.82907429]
[1759295439255,1.11379547,114540.0,114530.0,1.83111429]
[1759295440062,1.11379547,114540.0,114530.0,1.83238429]
[1759295440261,1.02441,114540.0,114530.0,9.52879029]
[1759295440697,1.02441,114540.0,114530.0,9.46634623]
[1759295442456,1.02441,114540.0,114530.0,9.54449921]
[1759295445863,1.02441,114540.0,114530.0,9.45369921]
[1759295446075,1.02441,114540.0,114530.0,8.47945921]
[1759295446348,1.02441,114540.0,114530.0,9.45369921]
[1759295446506,1.02441,114540.0,114530.0,9.54445921]
[1759295447294,1.02441,114540.0,114530.0,8.47945921]
[1759295447474,1.02441,114540.0,114530.0,9.54445921]
[1759295447957,1.02441,114540.0,114530.0,9.45369921]
[1759295448184,1.02441,114540.0,114530.0,8.47945921]
[1759295448367,1.02441,114540.0,114530.0,9.54445921]
[1759295448715,1.02441,114540.0,114530.0,9.56042245]
[1759295449877,1.02441,114540.0,114530.0,9.10654245]
[1759295450097,1.02441,114540.0,114530.0,9.56026245]
[1759295452622,1.02441,114540.0,114530.0,9.39690245]
[1759295452836,0.47490473,114540.0,114530.0,9.10010222]
[1759295453044,0.47490473,114540.0,114530.0,8.90831222]
[1759295453232,0.12328859,114540.0,114530.0,9.27090434]
[1759295453378,1e-08,114540.0,114530.0,9.27090434]
[1759295453790,1e-08,114540.0,114530.0,9.2549411]
[1759295455790,1e-08,114540.0,114530.0,9.0068211]
[1759295456011,1e-08,114540.0,114530.0,9.2549411]
[1759295457317,1e-08,114540.0,114530.0,10.2349811]
[1759295459362,1e-08,114540.0,114530.0,9.0068211]
[1759295459564,1e-08,114540.0,114530.0,9.7085811]
[1759295459793,1e-08,114540.0,114530.0,9.3456211]
[1759295459946,1e-08,114540.0,114530.0,9.2549011]
[1759295460689,1e-08,114540.0,114530.0,9.19230898]
[1759295461231,1e-08,114540.0,114530.0,9.00674769]
[1759295461496,1e-08,114540.0,114530.0,9.25482769]
[1759295461658,1e-08,114540.0,114530.0,9.23001231]
[1759295462093,1e-08,114540.0,114530.0,9.1674936]
[1759295462605,1e-08,114540.0,114530.0,9.18310058]
[1759295463845,0.02413,114550.0,114540.0,0.51461148]
[1759295464053,0.00355177,114570.0,114560.0,0.514581]
[1759295464261,0.00032177,114570.0,114560.0,0.82513503]
[1759295464418,0.00564177,114570.0,114560.0,0.84935503]
[1759295466365,0.00564177,114570.0,114560.0,0.91496694]
[1759295466812,0.01664177,114570.0,114560.0,0.91596694]
[1759295467123,0.01664177,114570.0,114560.0,1.07928694]
[1759295467312,0.01341177,114570.0,114560.0,1.89592694]
[1759295467722,0.01132177,114570.0,114560.0,9.88185834]
[1759295467925,0.01132177,114570.0,114560.0,8.99261834]
[1759295468295,0.01132177,114570.0,114560.0,8.83938431]
[1759295468433,0.01132177,114570.0,114560.0,8.81498891]
[1759295469003,0.01132177,114570.0,114560.0,8.749377]
[1759295469223,0.01132177,114570.0,114560.0,8.59072247]
[1759295469432,0.01132177,114570.0,114560.0,8.62087437]
[1759295469636,0.00032177,114570.0,114560.0,8.86791437]
[1759295469842,0.00432177,114570.0,114560.0,8.94606576]
[1759295469965,0.00432177,114570.0,114560.0,8.69802576]
[1759295470168,0.00432177,114570.0,114560.0,8.94602576]
[1759295470419,0.00432177,114570.0,114560.0,8.69802576]
[1759295470809,0.00032177,114570.0,114560.0,8.94602576]
[1759295471005,0.00032177,114570.0,114560.0,8.69802576]
[1759295471182,0.00032177,114570.0,114560.0,8.97021064]
[1759295471590,0.00032177,114570.0,114560.0,9.03553446]
[1759295472392,0.28415977,114570.0,114560.0,9.03553446]
[1759295472588,0.02483,114580.0,114570.0,0.51456576]
[1759295472812,0.00116464,114580.0,114570.0,8.83566211]
[1759295473061,0.00116464,114580.0,114570.0,8.86187211]
[1759295473453,0.00116464,114580.0,114570.0,8.92431703]
[1759295474319,0.00116464,114580.0,114570.0,8.86187211]
[1759295474505,0.00116464,114580.0,114570.0,8.86487211]
[1759295474899,0.00116464,114580.0,114570.0,8.61560211]
[1759295475105,0.00116464,114580.0,114570.0,8.83637723]
[1759295475302,0.00116464,114580.0,114570.0,8.83764723]
[1759295475532,0.00116464,114580.0,114570.0,8.90409215]
[1759295476403,0.00116464,114580.0,114570.0,8.65613215]
[1759295476629,0.00116464,114580.0,114570.0,8.90409215]
[1759295477228,0.00116464,114580.0,114570.0,8.75696723]
[1759295477427,0.00116464,114580.0,114570.0,9.65812723]
[1759295478814,0.00116464,114580.0,114570.0,8.96251913]
[1759295479090,0.00116464,114580.0,114570.0,8.62383913]
[1759295479284,0.00116464,114580.0,114570.0,8.87179913]
[1759295479974,0.00116464,114580.0,114570.0,8.62383913]
[1759295480178,0.00116464,114580.0,114570.0,8.87175913]
[1759295480962,0.00116464,114580.0,114570.0,8.62383913]
[1759295481173,0.00116464,114580.0,114570.0,8.87175913]
[1759295483332,1.00116464,114580.0,114570.0,8.87175913]
[1759295484069,0.51909613,114580.0,114570.0,9.17175913]
[1759295484307,0.36863189,114580.0,114570.0,9.19439401]
[1759295484442,0.28246057,114580.0,114570.0,9.19439401]
[1759295484658,0.13410664,114580.0,114570.0,9.19439401]
[1759295484869,0.0244,114590.0,114580.0,0.51455053]
[1759295485068,0.00035106,114590.0,114580.0,8.72197653]
[1759295485327,0.00035106,114590.0,114580.0,8.74882653]
[1759295485743,0.00035106,114590.0,114580.0,8.838212]
[1759295486152,0.00035106,114590.0,114580.0,8.838172]
[1759295486683,0.00035106,114590.0,114580.0,8.590292]
[1759295486894,0.00035106,114590.0,114580.0,8.838172]
[1759295487306,0.00035106,114590.0,114580.0,9.817812]
[1759295488193,0.00035106,114590.0,114580.0,8.61647388]
[1759295488393,0.00035106,114590.0,114580.0,9.31787388]
[1759295489522,0.00232106,114590.0,114580.0,8.61520388]
[1759295489662,0.00551106,114590.0,114580.0,8.95174388]
[1759295489858,0.00035106,114590.0,114580.0,8.95503388]
[1759295490425,0.00035106,114590.0,114580.0,8.61647388]
[1759295490587,0.00035106,114590.0,114580.0,8.86435388]
[1759295491324,0.00035106,114590.0,114580.0,8.76856617]
[1759295492044,0.00035106,114590.0,114580.0,8.79871807]
[1759295492251,0.00035106,114590.0,114580.0,8.80271807]
[1759295493782,1e-08,114590.0,114580.0,8.80271807]
[1759295494347,1e-08,114590.0,114580.0,8.86511322]
[1759295494543,0.0002,114620.0,114580.0,8.95704322]
[1759295494751,0.0002,114620.0,114610.0,0.51450484]
[1759295494952,0.0002,114620.0,114610.0,8.84004821]
[1759295495159,0.0002,114620.0,114610.0,8.62032821]
[1759295495353,0.0002,114620.0,114610.0,8.62867762]
[1759295495557,0.0002,114620.0,114610.0,8.93963277]
[1759295495558,1e-08,114620.0,114610.0,8.93963277]
[1759295497121,1e-08,114620.0,114610.0,9.10287277]
[1759295497298,1e-08,114620.0,114610.0,9.91915277]
[1759295497918,1e-08,114620.0,114610.0,9.92515277]
[1759295498378,1e-08,114620.0,114610.0,9.39911277]
[1759295498705,1e-08,114620.0,114610.0,9.03631277]
[1759295498872,1e-08,114620.0,114610.0,8.94563277]
[1759295499255,1e-08,114620.0,114610.0,9.01137967]
[1759295499873,1e-08,114630.0,114620.0,0.77448961]
[1759295500083,1e-08,114640.0,114630.0,0.54462629]
[1759295500290,0.0002,114650.0,114640.0,0.54461107]
[1759295500568,0.00033935,114650.0,114640.0,9.19336254]
[1759295500715,0.00033935,114650.0,114640.0,9.46873254]
[1759295501255,0.00033935,114650.0,114640.0,9.18677064]
[1759295501458,0.00033935,114650.0,114640.0,9.43731064]
[1759295501669,0.00033935,114650.0,114640.0,9.43858064]
[1759295502020,0.00033935,114650.0,114640.0,9.50082082]
[1759295502233,0.00033935,114650.0,114640.0,9.50507585]
[1759295503180,0.00233935,114650.0,114640.0,9.50507585]
[1759295504102,0.00233935,114650.0,114640.0,9.19006064]
[1759295504373,0.00233935,114650.0,114640.0,9.43854064]
[1759295504631,0.00233935,114650.0,114640.0,9.46470831]
[1759295504971,0.00233935,114650.0,114640.0,9.24638021]
[1759295505210,0.00233935,114650.0,114640.0,9.49478021]
[1759295506235,0.00233935,114650.0,114640.0,9.49578021]
[1759295507456,0.00233935,114650.0,114640.0,9.94902021]
[1759295507668,0.00233935,114650.0,114640.0,9.24738021]
[1759295507894,0.00233935,114650.0,114640.0,9.49570021]
[1759295508367,0.00233935,114650.0,114640.0,9.24738021]
[1759295508583,0.00233935,114650.0,114640.0,9.49566021]
[1759295508794,1e-08,114650.0,114640.0,9.49666021]
[1759295509977,1e-08,114650.0,114640.0,9.58859021]
[1759295510222,1e-08,114650.0,114640.0,9.55890039]
[1759295512744,1e-08,114650.0,114640.0,9.62532363]
[1759295513234,1e-08,114650.0,114640.0,9.65032363]
[1759295513651,1e-08,114650.0,114640.0,9.68808345]
[1759295514091,0.01308188,114680.0,114670.0,0.51441353]
[1759295514286,0.01308188,114680.0,114670.0,8.809945]
[1759295514406,0.01308188,114680.0,114670.0,8.8667869]
[1759295514825,2.1666,114700.0,114690.0,0.17438311]
[1759295515068,2.17226451,114700.0,114690.0,8.38047911]
[1759295515286,2.17226451,114700.0,114690.0,8.49573911]
[1759295515530,2.43601789,114700.0,114690.0,0.62495]
[1759295515984,2.43601789,114700.0,114690.0,0.2817]
[1759295516113,2.43601789,114700.0,114690.0,0.52166]
[1759295516323,2.46218442,114700.0,114690.0,0.2817]
[1759295516664,2.46218442,114700.0,114690.0,0.52986]
[1759295517110,2.49233632,114700.0,114690.0,0.2817]
[1759295517321,2.49233632,114700.0,114690.0,0.83922]
[1759295517528,2.50044626,114700.0,114690.0,0.02338]
[1759295517739,2.53962638,114700.0,114690.0,0.83597]
[1759295517948,2.52544626,114700.0,114690.0,0.01811]
[1759295518157,2.52544626,114700.0,114690.0,0.71951]
[1759295518158,2.53644626,114700.0,114690.0,0.71951]
[1759295518795,2.53644626,114700.0,114690.0,0.01811]
[1759295519005,2.53644626,114700.0,114670.0,0.5258]
[1759295519006,0.20455022,114680.0,114670.0,0.5258]
[1759295519222,0.29911569,114680.0,114670.0,0.97908]
[1759295519436,0.29911569,114680.0,114670.0,1.22724]
[1759295519890,0.32529275,114680.0,114670.0,1.22724]
[1759295520093,0.32529275,114680.0,114670.0,0.16316]
[1759295520310,0.32529275,114680.0,114670.0,1.175]
[1759295520516,0.34429275,114680.0,114670.0,1.176]
[1759295520930,0.31414085,114680.0,114670.0,1.176]
[1759295521153,0.31414085,114680.0,114670.0,1.19938]
[1759295521369,0.28796379,114680.0,114670.0,0.18754]
[1759295521556,0.28796379,114680.0,114670.0,1.25186]
[1759295521692,0.31413425,114680.0,114670.0,1.25186]
[1759295521904,0.13973593,114680.0,114670.0,1.42627353]
[1759295522131,0.13973593,114680.0,114670.0,1.76627353]
[1759295522132,0.11356547,114680.0,114670.0,1.76627353]
[1759295522320,0.11052547,114680.0,114670.0,9.46480953]
[1759295522542,0.019,114680.0,114670.0,9.46480953]
[1759295522741,0.019,114680.0,114670.0,9.46787953]
[1759295523116,0.019,114680.0,114670.0,8.2053089]
[1759295523379,2.34447242,114700.0,114690.0,0.17438311]
[1759295523572,2.28779517,114700.0,114690.0,0.17438311]
[1759295523718,2.28475517,114700.0,114690.0,0.17438311]
[1759295523929,2.43295789,114700.0,114690.0,0.17438311]
[1759295524125,2.45937789,114700.0,114680.0,0.13164274]
[1759295524327,2.45937789,114700.0,114690.0,7.696406]
[1759295524581,2.45937789,114700.0,114690.0,7.944846]
[1759295524726,2.45937789,114700.0,114690.0,0.24844]
[1759295524928,2.45937789,114700.0,114680.0,0.13164274]
[1759295525128,2.47933789,114700.0,114690.0,8.286806]
[1759295525368,2.22372496,114700.0,114690.0,0.76478311]
[1759295525573,2.21558451,114700.0,114690.0,8.48669911]
[1759295526225,2.40295242,114700.0,114690.0,8.310186]
[1759295526424,2.49233789,114700.0,114690.0,8.061786]
[1759295526655,2.49537789,114700.0,114690.0,8.310186]
[1759295526865,2.45937789,114700.0,114690.0,8.48256911]
[1759295527248,2.45937789,114700.0,114690.0,9.46164911]
[1759295527481,2.19258451,114700.0,114690.0,9.46164911]
[1759295527764,2.19258451,114700.0,114690.0,9.46377911]
[1759295528138,2.19258451,114700.0,114690.0,9.46684911]
[1759295528139,2.19044451,114700.0,114690.0,9.46684911]
[1759295528333,2.19044451,114700.0,114690.0,9.37632911]
[1759295528530,2.19256451,114700.0,114690.0,8.39732911]
[1759295528759,2.19256451,114700.0,114690.0,9.46389911]
[1759295528978,2.19044451,114700.0,114690.0,9.46696911]
[1759295529595,2.19944451,114700.0,114690.0,9.46696911]
[1759295530065,2.19044451,114700.0,114690.0,9.46696911]
[1759295530230,2.19044451,114700.0,114690.0,9.53124442]
[1759295530410,2.19644451,114700.0,114690.0,9.53124442]
[1759295530870,2.19856451,114700.0,114690.0,9.52817442]
[1759295531396,2.19256451,114700.0,114690.0,9.52817442]
[1759295531773,2.19044451,114700.0,114690.0,8.46680442]
[1759295531978,2.19044451,114700.0,114690.0,9.53120442]
[1759295535666,2.20344451,114700.0,114690.0,9.53120442]
[1759295535957,2.20556451,114700.0,114690.0,8.46373442]
[1759295536169,2.20861451,114700.0,114690.0,9.52596442]
[1759295536377,2.20861451,114700.0,114690.0,9.52809442]
[1759295536378,2.20649451,114700.0,114690.0,9.52809442]
[1759295536584,2.20344451,114700.0,114690.0,9.53116442]
[1759295537602,2.20556451,114700.0,114690.0,9.52809442]
[1759295538046,2.20556451,114700.0,114690.0,8.46373442]
[1759295538256,2.38298242,114700.0,114690.0,0.59081531]
[1759295538488,2.20344451,114700.0,114690.0,1.83511842]
[1759295539089,2.20557451,114700.0,114690.0,1.83204842]
[1759295540505,2.20557451,114700.0,114690.0,9.53139442]
[1759295540506,2.20344451,114700.0,114690.0,9.53139442]
[1759295543303,2.20554451,114700.0,114690.0,8.46373442]
[1759295543518,2.20554451,114700.0,114690.0,9.52845442]
[1759295543724,2.20344451,114700.0,114690.0,9.53162442]
[1759295544091,2.20344451,114700.0,114690.0,9.46734911]
[1759295545530,2.20344451,114700.0,114690.0,9.46734897]
[1759295549240,2.20344451,114700.0,114690.0,9.52934081]
[1759295549416,2.20344451,114700.0,114690.0,9.59592475]
[1759295552036,2.20344451,114700.0,114690.0,9.53393291]
[1759295554257,2.20344451,114700.0,114690.0,8.23946897]
[1759295554391,2.20344451,114700.0,114690.0,8.65568583]
[1759295555040,2.20344451,114700.0,114690.0,8.65564583]
[1759295555196,2.19044451,114700.0,114690.0,8.65564583]
[1759295555401,2.19044451,114700.0,114690.0,8.91720583]
[1759295555825,2.19444451,114700.0,114690.0,8.91720583]
[1759295556661,2.19444451,114700.0,114690.0,8.91716583]
[1759295557247,2.19444451,114700.0,114690.0,8.83168583]
[1759295557459,2.19444451,114700.0,114690.0,9.76291773]
[1759295557689,2.19444451,114700.0,114690.0,8.62056634]
[1759295557890,2.07680199,114700.0,114690.0,8.86912634]
[1759295559028,2.07680199,114700.0,114690.0,8.62056634]
[1759295559235,2.07680199,114700.0,114690.0,8.86912634]
[1759295560089,2.07680199,114700.0,114690.0,8.86908634]
[1759295560298,2.07680199,114700.0,114690.0,8.9357226]
[1759295560724,2.07680199,114700.0,114690.0,8.6872026]
[1759295560929,2.07680199,114700.0,114690.0,8.9356826]
[1759295561549,2.07680199,114700.0,114690.0,8.6872026]
[1759295561878,2.07680199,114700.0,114690.0,8.9356826]
[1759295562083,2.07680199,114700.0,114690.0,8.9356426]
[1759295562939,2.07680199,114700.0,114690.0,8.6872026]
[1759295563146,2.07680199,114700.0,114690.0,8.9356026]
[1759295563738,2.07680199,114700.0,114690.0,8.6872026]
[1759295563898,2.07680199,114700.0,114690.0,8.9356026]
[1759295564306,2.07680199,114700.0,114690.0,8.6872026]
[1759295564506,2.07680199,114700.0,114690.0,8.9355626]
[1759295564736,2.07680199,114700.0,114690.0,8.6872026]
[1759295564936,2.07680199,114700.0,114690.0,8.9355626]
[1759295565626,2.07680199,114700.0,114690.0,8.99783877]
[1759295566600,2.07680199,114700.0,114690.0,8.74951877]
[1759295566747,2.07680199,114700.0,114690.0,8.96768687]
[1759295567155,2.07680199,114700.0,114690.0,9.78913061]
[1759295567364,2.07680199,114700.0,114690.0,9.87973061]
[1759295567751,2.07680199,114700.0,114690.0,9.81737444]
[1759295567976,2.07680199,114700.0,114690.0,9.89532201]
[1759295568198,2.07680199,114700.0,114690.0,9.89528201]
[1759295568445,2.07890199,114700.0,114690.0,9.18652654]
[1759295568659,2.07890199,114700.0,114690.0,9.56165897]
[1759295568859,2.08187199,114700.0,114690.0,9.55952897]
[1759295569012,2.07890199,114700.0,114690.0,9.56168897]
[1759295569212,2.07680199,114700.0,114690.0,9.56485897]
[1759295569419,2.07680199,114700.0,114690.0,9.11245897]
[1759295569623,2.07680199,114700.0,114690.0,9.56553897]
[1759295569822,2.08187199,114700.0,114690.0,9.37627714]
[1759295570020,2.08187199,114700.0,114690.0,8.62306029]
[1759295570221,2.08187199,114700.0,114690.0,9.68750029]
[1759295570695,2.08187199,114700.0,114690.0,8.62306029]
[1759295570897,2.07680199,114700.0,114690.0,9.68962029]
[1759295571101,2.07680199,114700.0,114690.0,9.69276029]
[1759295571300,2.07886199,114700.0,114690.0,9.69276029]
[1759295571652,2.07680199,114700.0,114690.0,9.69276029]
[1759295573373,2.07886199,114700.0,114690.0,9.68738029]
[1759295573622,2.07886199,114700.0,114690.0,9.62719714]
[1759295574032,2.07680199,114700.0,114690.0,9.63033714]
[1759295576215,2.07680199,114700.0,114690.0,8.56601714]
[1759295576834,2.07680199,114700.0,114690.0,8.81469714]
[1759295577243,2.07680199,114700.0,114690.0,9.79337714]
[1759295580760,2.07680199,114700.0,114690.0,8.72913714]
[1759295580960,2.07680199,114700.0,114690.0,9.79333714]
[1759295581395,2.07886199,114700.0,114690.0,8.72599714]
[1759295581598,2.08189199,114700.0,114690.0,9.78799714]
[1759295582005,2.08189199,114700.0,114690.0,9.44799728]
[1759295582214,2.07886199,114700.0,114690.0,9.44799728]
[1759295583135,2.07886199,114700.0,114690.0,9.45015728]
[1759295583704,2.07886199,114700.0,114690.0,9.45329728]
[1759295583875,2.07886199,114700.0,114690.0,9.45015728]
[1759295584370,2.07886199,114700.0,114690.0,9.38512911]
[1759295585465,2.07886199,114700.0,114690.0,9.72512911]
[1759295586975,2.2532299,114700.0,114690.0,8.484466]
[1759295587185,2.34564537,114700.0,114690.0,1.60362]
[1759295587410,2.34564537,114700.0,114690.0,1.85226]
[1759295588057,2.34164537,114700.0,114690.0,1.85226]
[1759295588260,2.33861537,114700.0,114690.0,2.02664311]
[1759295588461,2.34261537,114700.0,114690.0,2.02664311]
[1759295588870,2.33861537,114700.0,114690.0,2.02664311]
[1759295589086,2.34164537,114700.0,114690.0,2.02664311]
[1759295589498,2.34964537,114700.0,114690.0,2.02664311]
[1759295590074,2.34964537,114700.0,114690.0,1.85226]
[1759295590274,2.34964537,114700.0,114690.0,2.02664311]
[1759295592968,2.34661537,114700.0,114690.0,2.02664311]
[1759295593150,2.17224746,114700.0,114690.0,2.03194311]
[1759295593360,2.17224746,114700.0,114690.0,2.02880311]
[1759295593558,2.34661537,114700.0,114690.0,2.09048024]
[1759295594273,2.17224746,114700.0,114690.0,2.02664311]
[1759295594499,2.17724746,114700.0,114690.0,2.02664311]
[1759295594716,2.35161537,114700.0,114690.0,2.02664311]
[1759295594864,2.17724746,114700.0,114690.0,2.02664311]
[1759295595218,2.35161537,114700.0,114690.0,2.02664311]
[1759295595904,2.17724746,114700.0,114690.0,2.02664311]
[1759295596092,2.35161537,114700.0,114690.0,2.02664311]
[1759295597197,2.35464537,114700.0,114690.0,2.02664311]
[1759295598384,2.35464537,114700.0,114690.0,2.09119964]
[1759295600087,2.35464537,114700.0,114690.0,1.02699964]
[1759295600250,2.35464537,114700.0,114690.0,2.09107964]
[1759295600468,2.35464537,114700.0,114690.0,0.85261653]
[1759295600688,2.35464537,114700.0,114690.0,2.09107964]
[1759295601090,2.17518746,114700.0,114690.0,2.09310964]
[1759295601412,2.17518746,114700.0,114690.0,2.15868505]
[1759295601596,2.17518746,114700.0,114690.0,9.85509105]
[1759295602854,2.35161537,114700.0,114690.0,9.85189105]
[1759295603360,2.17724746,114700.0,114690.0,9.85189105]
[1759295604106,2.35161537,114700.0,114690.0,9.78951564]
[1759295604287,2.35161537,114700.0,114690.0,0.91499194]
[1759295604288,2.35472537,114700.0,114690.0,0.91499194]
[1759295604517,2.35472537,114700.0,114690.0,1.91661653]
[1759295605692,2.35472537,114700.0,114690.0,0.85261653]
[1759295605900,2.35472537,114700.0,114690.0,1.2637]
[1759295606108,2.35472537,114700.0,114690.0,1.51206]
[1759295607348,2.34172537,114700.0,114690.0,1.51206]
[1759295607727,2.35272537,114700.0,114690.0,1.51306]
[1759295607902,2.38689138,114700.0,114690.0,1.51406]
[1759295608902,2.38689138,114700.0,114690.0,0.45006]
[1759295609492,2.38689138,114700.0,114690.0,1.51418]
[1759295609758,2.38689138,114700.0,114690.0,0.45006]
[1759295609957,2.38689138,114700.0,114690.0,1.51418]
[1759295611050,2.38689138,114700.0,114690.0,0.45006]
[1759295611252,2.38689138,114700.0,114690.0,1.26582]
[1759295611623,2.38689138,114700.0,114690.0,1.51414]
[1759295611825,2.39504351,114700.0,114690.0,1.51414]
[1759295611965,2.38689138,114700.0,114690.0,0.45006]
[1759295612171,2.39504346,114700.0,114690.0,1.51414]
[1759295612372,2.37604346,114700.0,114690.0,1.51214]
[1759295612593,2.49490683,114700.0,114690.0,1.26382]
[1759295612795,2.40619536,114700.0,114690.0,1.51222]
[1759295615273,2.40619054,114700.0,114690.0,1.51222]
[1759295616787,0.17441353,114670.0,114660.0,0.1762851]
[1759295616998,0.268969,114670.0,114660.0,1.5805251]
[1759295617199,0.291869,114670.0,114660.0,1.5805251]
[1759295617402,0.291869,114670.0,114660.0,1.3321251]
[1759295617701,0.31493026,114670.0,114660.0,1.5805651]
[1759295618342,0.31804026,114670.0,114660.0,0.5162851]
[1759295618552,0.31804026,114670.0,114660.0,1.2405251]
[1759295620391,0.31904026,114670.0,114660.0,1.2435251]
[1759295621555,0.17444395,114650.0,114640.0,0.24985296]
[1759295621748,0.17650395,114650.0,114640.0,0.16603482]
[1759295621995,0.20251395,114650.0,114640.0,0.34049399]
[1759295622317,0.20251395,114650.0,114640.0,0.15731187]
[1759295622700,0.20251395,114650.0,114640.0,0.40567187]
[1759295623301,0.20251395,114650.0,114640.0,0.58013104]
[1759295623652,0.19940395,114650.0,114640.0,0.58013104]
[1759295623852,0.0229,114650.0,114640.0,0.58536104]
[1759295624053,0.19734395,114650.0,114640.0,0.58536104]
[1759295624268,0.19834395,114650.0,114640.0,0.59036104]
[1759295624802,0.20040395,114650.0,114640.0,0.58716104]
[1759295625157,0.20040395,114650.0,114640.0,0.59934112]
[1759295626448,0.19834395,114650.0,114640.0,0.60254112]
[1759295626773,0.20040395,114650.0,114640.0,0.59934112]
[1759295627280,0.20040395,114650.0,114640.0,1.48778112]
[1759295627962,0.20040395,114650.0,114640.0,0.42350112]
[1759295628135,0.20040395,114650.0,114640.0,1.48571112]
[1759295628382,0.19834395,114650.0,114640.0,1.48774112]
[1759295628554,0.19834395,114650.0,114640.0,0.42350112]
[1759295628764,0.19834395,114650.0,114640.0,1.49106112]
[1759295628970,0.19834395,114650.0,114640.0,1.41220917]
[1759295629159,0.19834395,114650.0,114640.0,1.31836917]
[1759295629324,0.20040395,114650.0,114640.0,1.40900917]
[1759295629985,0.20040395,114650.0,114640.0,1.40697917]
[1759295630189,0.20040395,114650.0,114640.0,0.34261917]
[1759295630410,0.20040395,114650.0,114640.0,1.40697917]